fUSD/lending_fUSD_20260528
["ID","MTS","AMOUNT","RATE_DAILY","PERIOD"]
[423174162,1779903038000,-45934.29778124,0.00012041,2]
[423174150,1779903038000,-232.73333326,0.00011987,2]
[423174148,1779903038000,-45934.29778124,0.00011969,2]
[423174149,1779903038000,-232.73333326,0.00011987,2]
[423174147,1779903038000,-28136.43339724,0.00011951,2]
[423174151,1779903038000,-45934.29778124,0.00011987,2]
[423174152,1779903038000,-1500000.0,0.00011997,2]
[423174153,1779903038000,-33218.9209,0.00011997,2]
[423174154,1779903038000,-2500000.0,0.00011997,2]
[423174155,1779903038000,-2000.0,0.00011997,2]
[423174156,1779903038000,-2569.6514,0.00011997,2]
[423174159,1779903038000,-186.01964066,0.00011997,2]
[423174158,1779903038000,-184.0,0.00011997,2]
[423174161,1779903038000,-45934.29778124,0.00012023,2]
[423174146,1779903038000,-1546.48855707,0.00011951,2]
[423174195,1779903038000,-500.0,0.00013698,2]
[423174191,1779903038000,-500.0,0.00013698,2]
[423174194,1779903038000,-500.0,0.00013698,2]
[423174226,1779903038000,-500.0,0.00013698,2]
[423174227,1779903038000,-456.79764672,0.00013698,2]
[423174229,1779903038000,-500.0,0.00013698,2]
[423174228,1779903038000,-500.0,0.00013698,2]
[423174233,1779903038000,-500.0,0.00013698,2]
[423174231,1779903038000,-500.0,0.00013698,2]
[423174235,1779903038000,-500.0,0.00013698,2]
[423174236,1779903038000,-500.0,0.00013698,2]
[423174238,1779903038000,-500.0,0.00013698,2]
[423174240,1779903038000,-500.0,0.00013698,2]
[423174244,1779903038000,-203.76945539,0.00013698,2]
[423174242,1779903038000,-500.0,0.00013698,2]
[423174247,1779903038000,-500.0,0.00013698,2]
[423174257,1779903038000,-500.0,0.00013698,2]
[423174250,1779903038000,-500.0,0.00013698,2]
[423174252,1779903038000,-500.0,0.00013698,2]
[423174254,1779903038000,-500.0,0.00013698,2]
[423174263,1779903038000,-166.66,0.00013699,2]
[423174261,1779903038000,-2500.0,0.00013699,2]
[423174259,1779903038000,-500.0,0.00013698,2]
[423174265,1779903038000,-200.0,0.00013699,2]
[423174268,1779903038000,-500.0,0.00013699,2]
[423174270,1779903038000,-352.97,0.000137,2]
[423174269,1779903038000,-306.08068665,0.00013699,2]
[423174272,1779903038000,-20845.46677566,0.00013755,2]
[423174274,1779903038000,-166.66,0.00013836,2]
[423174196,1779903038000,-500.0,0.00013698,2]
[423174225,1779903038000,-500.0,0.00013698,2]
[423174224,1779903038000,-500.0,0.00013698,2]
[423174276,1779903038000,-1480.29,0.00013883,2]
[423174221,1779903038000,-500.0,0.00013698,2]
[423174193,1779903038000,-500.0,0.00013698,2]
[423174197,1779903038000,-500.0,0.00013698,2]
[423174198,1779903038000,-500.0,0.00013698,2]
[423174199,1779903038000,-500.0,0.00013698,2]
[423174201,1779903038000,-643.17963152,0.00013698,2]
[423174202,1779903038000,-500.0,0.00013698,2]
[423174200,1779903038000,-500.0,0.00013698,2]
[423174222,1779903038000,-500.0,0.00013698,2]
[423174204,1779903038000,-500.0,0.00013698,2]
[423174207,1779903038000,-500.0,0.00013698,2]
[423174205,1779903038000,-500.0,0.00013698,2]
[423174208,1779903038000,-500.0,0.00013698,2]
[423174209,1779903038000,-500.0,0.00013698,2]
[423174203,1779903038000,-500.0,0.00013698,2]
[423174210,1779903038000,-500.0,0.00013698,2]
[423174206,1779903038000,-500.0,0.00013698,2]
[423174223,1779903038000,-500.0,0.00013698,2]
[423174220,1779903038000,-500.0,0.00013698,2]
[423174218,1779903038000,-694.87,0.00013698,2]
[423174217,1779903038000,-694.87,0.00013698,2]
[423174219,1779903038000,-694.87,0.00013698,2]
[423174215,1779903038000,-694.87,0.00013698,2]
[423174213,1779903038000,-500.0,0.00013698,2]
[423174214,1779903038000,-694.87,0.00013698,2]
[423174212,1779903038000,-500.0,0.00013698,2]
[423174211,1779903038000,-500.0,0.00013698,2]
[423174216,1779903038000,-694.87,0.00013698,2]
[423174354,1779903039000,-453.99205745,0.000161,2]
[423174360,1779903039000,-453.99205745,0.000162,2]
[423174364,1779903039000,-1480.29,0.00016363,2]
[423174356,1779903039000,-16310.39980233,0.0001611,15]
[423174351,1779903039000,-352.97,0.000161,2]
[423174326,1779903039000,-232.73333326,0.0001499,2]
[423174349,1779903039000,-1807.43,0.00016026,2]
[423174343,1779903039000,-3292.0,0.00015834,2]
[423174345,1779903039000,-1480.29,0.00015867,2]
[423174335,1779903039000,-1480.29,0.00015371,2]
[423174347,1779903039000,-453.99205745,0.00016,2]
[423174358,1779903039000,-174.23298578,0.00016151,2]
[423174409,1779903039000,-201.23509802,0.000178,2]
[423174362,1779903039000,-250.0,0.00016275,2]
[423174368,1779903039000,-191.01081584,0.00016399,2]
[423174370,1779903039000,-1373.3,0.00016438,2]
[423174376,1779903039000,-557.93,0.00016641,2]
[423174374,1779903039000,-12470.27195521,0.000165,2]
[423174372,1779903039000,-6616.0719566,0.000165,2]
[423174378,1779903039000,-168.02,0.00016712,2]
[423174382,1779903039000,-1252.0,0.00016857,2]
[423174380,1779903039000,-419.46,0.00016767,2]
[423174384,1779903039000,-1480.29,0.00016858,2]
[423174391,1779903039000,-1152.0,0.00017284,2]
[423174396,1779903039000,-1025898.5328192,0.00017339,2]
[423174341,1779903039000,-823.0,0.00015743,2]
[423174366,1779903039000,-150.0,0.00016399,2]
[423174331,1779903039000,-490729.35959454,0.00015,2]
[423174304,1779903039000,-500.0,0.00014398,2]
[423174333,1779903039000,-330.0,0.00015014,3]
[423174411,1779903039000,-1480.29,0.0001785,2]
[423174278,1779903039000,-1088.35,0.00013952,2]
[423174280,1779903039000,-166.66,0.00013973,2]
[423174294,1779903039000,-166.66,0.00014247,2]
[423174282,1779903039000,-6995.09579686,0.0001399,2]
[423174292,1779903039000,-266.07103257,0.0001421,7]
[423174288,1779903039000,-209.46,0.00014143,2]
[423174286,1779903039000,-166.66,0.0001411,2]
[423174284,1779903039000,-969.69792251,0.00014,2]
[423174290,1779903039000,-433.0,0.00014156,2]
[423174300,1779903039000,-166.66,0.00014384,2]
[423174298,1779903039000,-1480.29,0.00014379,2]
[423174329,1779903039000,-940.18848869,0.00014999,2]
[423174296,1779903039000,-587.0,0.00014339,2]
[423174306,1779903039000,-500.0,0.00014398,2]
[423174310,1779903039000,-694.87,0.00014398,2]
[423174308,1779903039000,-500.0,0.00014398,2]
[423174312,1779903039000,-500.0,0.00014398,2]
[423174315,1779903039000,-400.0,0.000144,2]
[423174313,1779903039000,-500.0,0.00014398,2]
[423174317,1779903039000,-201.23509802,0.00014849,2]
[423174324,1779903039000,-557.93,0.00014977,2]
[423174319,1779903039000,-1480.29,0.00014875,2]
[423174322,1779903039000,-216.72425874,0.00014925,2]
[423174339,1779903039000,-20845.46677566,0.00015612,2]
[423174337,1779903039000,-736.0,0.00015453,2]
[423174302,1779903039000,-2351.0,0.00014394,2]
[423174397,1779903039000,-1480.29,0.00017354,2]
[423174477,1779903039000,-3950.0,0.0002,2]
[423174401,1779903039000,-20845.46677566,0.0001747,2]
[423174470,1779903039000,-1554.89354808,0.0002,2]
[423174468,1779903039000,-151.0,0.0002,2]
[423174475,1779903039000,-25941.96802413,0.0002,2]
[423174473,1779903039000,-178.91628203,0.0002,2]
[423174520,1779903039000,-150.0,0.00020318,2]
[423174479,1779903039000,-16267.19144249,0.0002,2]
[423174481,1779903039000,-49739.18110057,0.0002,2]
[423174487,1779903039000,-901.12423349,0.0002,2]
[423174483,1779903039000,-13102.26307434,0.0002,2]
[423174489,1779903039000,-354.0,0.0002,2]
[423174485,1779903039000,-152.0,0.0002,2]
[423174490,1779903039000,-278.0,0.0002,2]
[423174460,1779903039000,-156.0,0.0002,2]
[423174492,1779903039000,-335.0,0.0002,2]
[423174496,1779903039000,-1211.0,0.0002,2]
[423174499,1779903039000,-327.0,0.0002,2]
[423174501,1779903039000,-2000.0,0.0002,7]
[423174503,1779903039000,-176.12555738,0.0002,2]
[423174506,1779903039000,-176.12555738,0.0002,2]
[423174509,1779903039000,-176.12555738,0.0002,2]
[423174516,1779903039000,-150.0,0.00020318,4]
[423174514,1779903039000,-10155.32192017,0.000203,2]
[423174518,1779903039000,-150.0,0.00020318,2]
[423174505,1779903039000,-176.12555738,0.0002,2]
[423174510,1779903039000,-176.1255574,0.0002,2]
[423174399,1779903039000,-4609.0,0.00017417,2]
[423174494,1779903039000,-2027.7,0.0002,2]
[423174458,1779903039000,-557.93,0.0001997,2]
[423174512,1779903039000,-3620.0,0.00020057,2]
[423174454,1779903039000,-5002.08070881,0.000199,3]
[423174456,1779903039000,-15015.16059296,0.0001995,15]
[423174405,1779903039000,-2000.0,0.00017676,2]
[423174407,1779903039000,-298.0,0.0001778,2]
[423174413,1779903039000,-55015.50379668,0.00017858,2]
[423174415,1779903039000,-81434.59280908,0.000179,2]
[423174421,1779903039000,-1207.60620475,0.00018,2]
[423174417,1779903039000,-11633.51325845,0.000179,2]
[423174419,1779903039000,-74063.72274863,0.00018,2]
[423174423,1779903039000,-1802.08437283,0.000181,2]
[423174425,1779903039000,-557.93,0.00018306,2]
[423174435,1779903039000,-1480.29,0.00018842,2]
[423174437,1779903039000,-1613.0,0.00018976,2]
[423174433,1779903039000,-1373.3,0.0001841,2]
[423174403,1779903039000,-500.0,0.00017676,2]
[423174427,1779903039000,-1480.29,0.00018346,2]
[423174462,1779903039000,-210.0,0.0002,2]
[423174464,1779903039000,-154.0,0.0002,2]
[423174466,1779903039000,-427.0,0.0002,2]
[423174439,1779903039000,-1690.0,0.00019,2]
[423174449,1779903039000,-352.97,0.000194,2]
[423174451,1779903039000,-176.0,0.00019726,2]
[423174443,1779903039000,-6453.0,0.00019159,2]
[423174445,1779903039000,-55015.50379668,0.00019283,2]
[423174441,1779903039000,-5236.69426975,0.00019,2]
[423174431,1779903039000,-2129.0,0.00018391,2]
[423174429,1779903039000,-12228.45,0.00018356,2]
[423174447,1779903039000,-20845.46677566,0.00019327,2]
[423174601,1779903040000,-354.0,0.00021,2]
[423174603,1779903040000,-278.0,0.00021,2]
[423174591,1779903040000,-154.0,0.00021,2]
[423174595,1779903040000,-151.0,0.00021,2]
[423174578,1779903040000,-150.0,0.00020882,4]
[423174593,1779903040000,-427.0,0.00021,2]
[423174584,1779903040000,-2157.14243826,0.00020997,2]
[423174582,1779903040000,-150.0,0.00020963,4]
[423174580,1779903040000,-150.0,0.00020945,4]
[423174588,1779903040000,-210.0,0.00021,2]
[423174597,1779903040000,-1210.28664732,0.00021,2]
[423174607,1779903040000,-327.0,0.00021,2]
[423174615,1779903040000,-9035.0,0.00021074,2]
[423174599,1779903040000,-199.75050415,0.00021,2]
[423174609,1779903040000,-150.0,0.0002107,4]
[423174611,1779903040000,-150.0,0.0002107,4]
[423174613,1779903040000,-150.0,0.0002107,4]
[423174617,1779903040000,-176.0,0.00021095,2]
[423174619,1779903040000,-20845.46677566,0.00021185,2]
[423174620,1779903040000,-150.0,0.00021196,4]
[423174623,1779903040000,-419.46,0.00021205,2]
[423174625,1779903040000,-150.0,0.00021285,4]
[423174627,1779903040000,-150.0,0.00021321,4]
[423174586,1779903040000,-156.0,0.00021,2]
[423174629,1779903040000,-150.0,0.00021447,4]
[423174605,1779903040000,-335.0,0.00021,2]
[423174576,1779903040000,-150.0,0.00020882,4]
[423174548,1779903040000,-151.0,0.00020449,2]
[423174574,1779903040000,-1524.0,0.00020833,2]
[423174633,1779903040000,-150.0,0.00021447,4]
[423174528,1779903040000,-150.0,0.00020318,2]
[423174524,1779903040000,-150.0,0.00020318,2]
[423174526,1779903040000,-150.0,0.00020318,2]
[423174522,1779903040000,-150.0,0.00020318,2]
[423174530,1779903040000,-150.0,0.00020318,2]
[423174541,1779903040000,-1373.3,0.00020381,2]
[423174532,1779903040000,-150.0,0.00020318,2]
[423174540,1779903040000,-239.21300105,0.00020318,2]
[423174534,1779903040000,-150.0,0.00020318,2]
[423174538,1779903040000,-150.0,0.00020318,2]
[423174536,1779903040000,-150.0,0.00020318,2]
[423174546,1779903040000,-2080.17592889,0.00020449,2]
[423174550,1779903040000,-151.0,0.00020449,2]
[423174544,1779903040000,-150.0,0.00020443,4]
[423174552,1779903040000,-500.0,0.00020488,2]
[423174556,1779903040000,-1035.7,0.00020548,2]
[423174554,1779903040000,-2000.0,0.00020488,2]
[423174566,1779903040000,-22985.89457091,0.000207,2]
[423174562,1779903040000,-150.0,0.00020694,4]
[423174558,1779903040000,-150.0,0.00020569,4]
[423174560,1779903040000,-150.0,0.0002064,4]
[423174564,1779903040000,-150.0,0.00020694,4]
[423174568,1779903040000,-55015.50379668,0.00020708,2]
[423174570,1779903040000,-174.23298578,0.00020813,2]
[423174572,1779903040000,-150.0,0.00020819,4]
[423174631,1779903040000,-150.0,0.00021447,4]
[423174643,1779903040000,-150.0,0.00021447,4]
[423174648,1779903040000,-256.16299537,0.000215,12]
[423174706,1779903040000,-9999.99,0.00021757,2]
[423174710,1779903040000,-4999.99,0.00021757,2]
[423174714,1779903040000,-150.99,0.00021757,2]
[423174712,1779903040000,-999.99,0.00021757,2]
[423174717,1779903040000,-2027.7,0.00021776,2]
[423174720,1779903040000,-150.0,0.00021823,4]
[423174727,1779903040000,-6155.0,0.00021889,2]
[423174731,1779903040000,-150.0,0.0002193,4]
[423174725,1779903040000,-150.0,0.00021823,4]
[423174723,1779903040000,-150.0,0.00021823,4]
[423174729,1779903040000,-5000.0,0.00021918,2]
[423174733,1779903040000,-150.0,0.00021948,4]
[423174735,1779903040000,-202.94842246,0.0002195,2]
[423174737,1779903040000,-156.0,0.00022,2]
[423174739,1779903040000,-210.0,0.00022,2]
[423174741,1779903040000,-427.0,0.00022,2]
[423174744,1779903040000,-151.0,0.00022,2]
[423174757,1779903040000,-327.0,0.00022,2]
[423174748,1779903040000,-300.0,0.00022,2]
[423174645,1779903040000,-185.24325722,0.000215,12]
[423174753,1779903040000,-278.0,0.00022,2]
[423174749,1779903040000,-247.49,0.00022,2]
[423174745,1779903040000,-160.0,0.00022,2]
[423174755,1779903040000,-335.0,0.00022,2]
[423174751,1779903040000,-354.0,0.00022,2]
[423174708,1779903040000,-7653.62,0.00021757,2]
[423174700,1779903040000,-2132.43,0.00021757,2]
[423174759,1779903040000,-212.45574764,0.00022,3]
[423174698,1779903040000,-9999.99,0.00021757,2]
[423174650,1779903040000,-243.58502056,0.000215,12]
[423174654,1779903040000,-262.8826749,0.000215,12]
[423174652,1779903040000,-256.16299537,0.000215,12]
[423174656,1779903040000,-262.8826749,0.000215,12]
[423174659,1779903040000,-268.59859079,0.000215,12]
[423174661,1779903040000,-225.38970658,0.000215,2]
[423174663,1779903040000,-352.97,0.000215,2]
[423174673,1779903040000,-2634.53874887,0.000215,12]
[423174674,1779903040000,-2857.93708289,0.000215,12]
[423174671,1779903040000,-2352.378295,0.000215,12]
[423174665,1779903040000,-956.81329305,0.000215,12]
[423174669,1779903040000,-2181.24023941,0.000215,12]
[423174677,1779903040000,-2857.93708289,0.000215,12]
[423174667,1779903040000,-2407.8894941,0.000215,12]
[423174704,1779903040000,-47094.46,0.00021757,2]
[423174678,1779903040000,-2236.95670847,0.00021545,2]
[423174696,1779903040000,-353.36,0.00021757,2]
[423174692,1779903040000,-9999.99,0.00021757,2]
[423174690,1779903040000,-150.0,0.00021697,4]
[423174694,1779903040000,-73881.12,0.00021757,2]
[423174682,1779903040000,-150.0,0.00021608,4]
[423174686,1779903040000,-150.0,0.00021685,2]
[423174684,1779903040000,-280.0,0.00021685,2]
[423174680,1779903040000,-150.0,0.00021572,4]
[423174688,1779903040000,-219.0,0.00021685,2]
[423174702,1779903040000,-212.38,0.00021757,2]
[423174815,1779903041000,-150.0,0.00022575,4]
[423174799,1779903041000,-24999.99,0.00022562,2]
[423174810,1779903041000,-150.0,0.00022575,4]
[423174812,1779903041000,-150.0,0.00022575,4]
[423174813,1779903041000,-150.0,0.00022575,4]
[423174811,1779903041000,-150.0,0.00022575,4]
[423174814,1779903041000,-150.0,0.00022575,4]
[423174818,1779903041000,-1025898.5328192,0.00022581,2]
[423174819,1779903041000,-2405.55389863,0.00022641,2]
[423174829,1779903041000,-327.0,0.00023,2]
[423174820,1779903041000,-156.0,0.00023,2]
[423174821,1779903041000,-210.0,0.00023,2]
[423174817,1779903041000,-281.26179824,0.00022575,4]
[423174822,1779903041000,-427.0,0.00023,2]
[423174825,1779903041000,-959.0,0.00023,2]
[423174824,1779903041000,-353.43283768,0.00023,2]
[423174823,1779903041000,-151.0,0.00023,2]
[423174826,1779903041000,-354.0,0.00023,2]
[423174831,1779903041000,-213.52814154,0.00023053,2]
[423174816,1779903041000,-211.84908355,0.00022575,4]
[423174803,1779903041000,-9804.4,0.00022562,2]
[423174783,1779903041000,-3257.77516498,0.0002235,14]
[423174801,1779903041000,-9999.99,0.00022562,2]
[423174828,1779903041000,-335.0,0.00023,2]
[423174761,1779903041000,-500.0,0.00022005,2]
[423174763,1779903041000,-150.0,0.00022011,4]
[423174765,1779903041000,-150.0,0.00022011,4]
[423174767,1779903041000,-150.0,0.00022074,4]
[423174769,1779903041000,-330.0,0.00022082,4]
[423174771,1779903041000,-2319.72410669,0.00022093,2]
[423174779,1779903041000,-150.0,0.00022253,4]
[423174773,1779903041000,-55015.50379668,0.00022132,2]
[423174778,1779903041000,-150.0,0.00022199,4]
[423174781,1779903041000,-150.0,0.00022325,4]
[423174775,1779903041000,-150.0,0.00022199,4]
[423174785,1779903041000,-1373.3,0.00022353,2]
[423174789,1779903041000,-2155.29,0.00022466,2]
[423174787,1779903041000,-150.0,0.0002245,4]
[423174793,1779903041000,-1094.74,0.00022466,2]
[423174791,1779903041000,-1905.66,0.00022466,2]
[423174795,1779903041000,-499.99,0.00022562,2]
[423174808,1779903041000,-150.0,0.00022575,4]
[423174807,1779903041000,-21371.53,0.00022562,2]
[423174797,1779903041000,-299.99,0.00022562,7]
[423174805,1779903041000,-9999.99,0.00022562,2]
[423174832,1779903041000,-7371.0,0.00023182,2]
[423174855,1779903041000,-157.0,0.00024,2]
[423174830,1779903041000,-20845.46677566,0.00023042,2]
[423174858,1779903041000,-794.26208108,0.00024,2]
[423174859,1779903041000,-354.0,0.00024,2]
[423174860,1779903041000,-278.0,0.00024,2]
[423174861,1779903041000,-335.0,0.00024,2]
[423174862,1779903041000,-327.0,0.00024,2]
[423174864,1779903041000,-51015.23,0.00024174,2]
[423174863,1779903041000,-1466.84,0.00024174,2]
[423174866,1779903041000,-1365.49,0.00024174,2]
[423174865,1779903041000,-293.75,0.00024174,2]
[423174851,1779903041000,-1578.0,0.00023875,2]
[423174869,1779903041000,-1407.64099139,0.000243,2]
[423174868,1779903041000,-208.97895572,0.0002429,7]
[423174870,1779903041000,-1545.9448655,0.000243,2]
[423174872,1779903041000,-1373.3,0.00024324,2]
[423174873,1779903041000,-228.9,0.00024658,2]
[423174874,1779903041000,-1000.0,0.00024658,2]
[423174871,1779903041000,-794.26208108,0.000243,2]
[423174875,1779903041000,-177.37165718,0.00024899,2]
[423174827,1779903041000,-278.0,0.00023,2]
[423174876,1779903041000,-2785.38608157,0.00024899,2]
[423174867,1779903041000,-10781.90473319,0.0002429,7]
[423174854,1779903041000,-427.0,0.00024,2]
[423174877,1779903041000,-8329.94212938,0.000249,2]
[423174853,1779903041000,-210.0,0.00024,2]
[423174857,1779903041000,-1545.9448655,0.00024,2]
[423174833,1779903041000,-2412.71383108,0.00023189,2]
[423174834,1779903041000,-500.0,0.00023299,2]
[423174835,1779903041000,-2000.0,0.00023299,2]
[423174837,1779903041000,-1545.9448655,0.000233,2]
[423174836,1779903041000,-1407.64099139,0.000233,2]
[423174838,1779903041000,-794.26208108,0.000233,2]
[423174841,1779903041000,-215.46156935,0.00023323,2]
[423174839,1779903041000,-208.97895572,0.00023323,2]
[423174842,1779903041000,-2027.7,0.00023553,2]
[423174843,1779903041000,-55015.50379668,0.00023557,2]
[423174844,1779903041000,-1407.64099139,0.000236,2]
[423174845,1779903041000,-1545.9448655,0.000236,2]
[423174846,1779903041000,-794.26208108,0.000236,2]
[423174847,1779903041000,-163.25,0.00023653,2]
[423174848,1779903041000,-1407.64099139,0.000238,2]
[423174849,1779903041000,-1545.9448655,0.000238,2]
[423174850,1779903041000,-794.26208108,0.000238,2]
[423174852,1779903041000,-156.0,0.00024,2]
[423174856,1779903041000,-1407.64099139,0.00024,2]
[423174840,1779903041000,-160.0,0.00023323,2]
[423174900,1779903043000,-6367.05137645,0.00024982,2]
[423174898,1779903043000,-247.49,0.00024923,7]
[423174897,1779903043000,-12515.52464628,0.000249,2]
[423174899,1779903043000,-9266.042086,0.00024982,2]
[423174905,1779903043000,-646.45029142,0.00024982,2]
[423174901,1779903043000,-541.53753,0.00024982,2]
[423174904,1779903043000,-1468.87043752,0.00024982,2]
[423174903,1779903043000,-1290.08569442,0.00024982,2]
[423174902,1779903043000,-797.26,0.00024982,2]
[423174907,1779903044000,-150.0,0.00016151,2]
[423174916,1779903044000,-174.63893705,0.00025,2]
[423174908,1779903044000,-3786.44360276,0.00024982,2]
[423174906,1779903044000,-944.24329165,0.00011897,2]
[423174909,1779903044000,-1124.0615707,0.00024982,2]
[423174910,1779903044000,-644.44991006,0.00024982,2]
[423174912,1779903044000,-590.51853051,0.00024982,2]
[423174913,1779903044000,-6074.34641932,0.00024982,2]
[423174911,1779903044000,-10799.33792451,0.00024982,2]
[423174914,1779903044000,-5333.6184774,0.00024982,2]
[423174915,1779903044000,-6285.42994561,0.00024982,2]
[423174917,1779903044000,-226.0,0.00025,2]
[423174929,1779903044000,-14.35180157,0.00025,2]
[423174920,1779903044000,-319375.33113291,0.00025,2]
[423174931,1779903044000,-511.41638915,0.00025,2]
[423174930,1779903044000,-18755.83074851,0.00025,2]
[423174918,1779903044000,-441.0,0.00025,2]
[423174926,1779903044000,-651.0,0.0002,2]
[423174924,1779903044000,-35.74108391,0.00017806,2]
[423174928,1779903044000,-651.0,0.00021,2]
[423174925,1779903044000,-8.55452857,0.00017806,2]
[423174922,1779903044000,-150.0,0.00016959,2]
[423174923,1779903044000,-105.70438752,0.00017806,2]
[423174921,1779903044000,-2724.12,0.00025,2]
[423174919,1779903044000,-179.23313651,0.00025,60]
[423174927,1779903044000,-386.84506783,0.0002,2]
[423174932,1779903045000,-176.93156461,0.00022,2]
[423174934,1779903046000,-651.0,0.00023,2]
[423174933,1779903046000,-474.06843539,0.00022,2]
[423174936,1779903046000,-944.24329163,0.00024899,2]
[423174935,1779903046000,-651.0,0.00024,2]
[423174937,1779903046000,-838.47476842,0.00025,2]
[423174939,1779903046000,-2588.0,0.00025,2]
[423174940,1779903046000,-9354.85122343,0.00025,2]
[423174943,1779903046000,-2998.31945334,0.00025,2]
[423174938,1779903046000,-491.12613771,0.00025,2]
[423174942,1779903046000,-2400.00943319,0.00025,2]
[423174941,1779903046000,-39125.06414944,0.00025,2]
[423174947,1779903098000,-10753.5784189,0.00011797,2]
[423174948,1779903099000,2000.0,0.00027544,120]
[423174949,1779903151000,-248.50914457,0.00011715,2]
[423174953,1779903169000,-300.0,0.00011796,2]
[423174954,1779903169000,-835312.4681547,0.00011797,2]
[423174950,1779903169000,-50003.12458045,0.00011697,2]
[423174951,1779903169000,-14069.65950096,0.00011715,2]
[423174952,1779903169000,-314.74776389,0.00011715,2]
[423174955,1779903204000,-5000.0,0.00011715,2]
[423174956,1779903225000,-1498.22407538,0.00011561,2]
[423174957,1779903245000,-884.14213714,0.00011561,2]
[423174958,1779903265000,-1143.01540716,0.00011561,2]
[423174959,1779903285000,-114.55738032,0.00011561,2]
[423174960,1779903339000,-238.5237,0.00011696,2]
[423174961,1779903392000,-1020.50748819,0.00011697,2]
[423174965,1779903421000,599.95,7.136e-05,2]
[423174964,1779903421000,599.95,6.779e-05,2]
[423174966,1779903421000,599.95,7.493e-05,2]
[423174971,1779903422000,599.95,8.92e-05,2]
[423174970,1779903422000,599.95,8.563e-05,2]
[423174969,1779903422000,273.2058662,8.206e-05,2]
[423174968,1779903422000,326.7441338,8.206e-05,2]
[423174967,1779903422000,599.95,7.85e-05,2]
[423174972,1779903423000,599.95,9.277e-05,2]
[423174974,1779903423000,53.5382676,9.99e-05,2]
[423174975,1779903423000,546.4117324,9.99e-05,2]
[423174973,1779903423000,599.95,9.634e-05,2]
[423174980,1779903840000,162.7,8.602e-05,2]
[423174986,1779904025000,-200.0,0.00010594,2]
[423174983,1779904025000,-500.0,0.0001049,2]
[423174984,1779904025000,-510.3,0.0001052,2]
[423174985,1779904025000,-250.0,0.00010526,2]
[423174982,1779904025000,-599.95,0.00010347,2]
[423174988,1779904025000,-599.95,0.00010704,2]
[423174989,1779904025000,-343.43,0.00010784,2]
[423174991,1779904025000,-1243.17112321,0.00010901,2]
[423174990,1779904025000,-304.99597515,0.00010801,2]
[423174987,1779904025000,-163.25,0.00010607,2]
[423174993,1779904032000,-153.63941752,0.00011061,2]
[423174992,1779904032000,-18.63887679,0.00010901,2]
[423174994,1779904077000,-446.31058248,0.00011061,2]
[423174995,1779904131000,-178.23,0.00011107,2]
[423174996,1779904131000,178.45201904,0.00010347,7]
[423174997,1779904140000,1000.0,0.00027543,120]
[423174999,1779904145000,-8288.0,0.00011111,2]
[423174998,1779904145000,-200.0,0.00010669,2]
[423175000,1779904145000,-1182.49,0.00011158,2]
[423175003,1779904145000,-200.78,0.0001123,7]
[423175001,1779904145000,-300.0,0.00011172,2]
[423175004,1779904145000,-3140.0,0.00011281,2]
[423175005,1779904145000,-4599.0,0.00011334,2]
[423175002,1779904145000,-508.06,0.00011173,2]
[423175006,1779904145000,-163.52,0.00011334,2]
[423175009,1779904145000,-207.98930263,0.00011382,2]